[Event "Titled Tuesday Blitz August 1 Early 2023"]
[White "Manukian, Artak"]
[Black "Sourath Biswas"]
[WhiteFideId "13301373"]
[BlackFideId "35091484"]
[WhiteElo "2436"]
[BlackElo "2587"]
[Result "1-0"]
[Round "5"]
[TimeControl "180+1"]
[Date "2023.08.01"]
[WhiteClock "0:00:41"]
[BlackClock "0:00:00"]
[Board "117"]

1. e4 {[%clk 0:03:00]}  c6 {[%clk 0:03:00]} 2. d4 {[%clk 0:03:00]}  d5 {[%clk 0:03:01]} 3. e5 {[%clk 0:03:00]}  Bf5 {[%clk 0:03:00]} 4. c4 {[%clk 0:02:59]}  e6 {[%clk 0:03:01]} 5. Nc3 {[%clk 0:02:58]}  Bb4 {[%clk 0:02:59]} 6. Qb3 {[%clk 0:02:58]}  Qb6 {[%clk 0:02:52]} 7. c5 {[%clk 0:02:57]}  Bxc3+ {[%clk 0:02:52]} 8. bxc3 {[%clk 0:02:56]}  Qxb3 {[%clk 0:02:34]} 9. axb3 {[%clk 0:02:57]}  Nd7 {[%clk 0:02:31]} 10. b4 {[%clk 0:02:57]}  Ne7 {[%clk 0:02:28]} 11. b5 {[%clk 0:02:55]}  O-O {[%clk 0:02:28]} 12. Nf3 {[%clk 0:02:50]}  b6 {[%clk 0:02:25]} 13. bxc6 {[%clk 0:02:44]}  Nxc6 {[%clk 0:02:25]} 14. Bb5 {[%clk 0:02:42]}  Rfc8 {[%clk 0:02:09]} 15. cxb6 {[%clk 0:02:23]}  Nxb6 {[%clk 0:02:08]} 16. O-O {[%clk 0:02:18]}  Ne7 {[%clk 0:02:05]} 17. Ba3 {[%clk 0:02:13]}  Ng6 {[%clk 0:02:05]} 18. Bc5 {[%clk 0:02:09]}  Nf8 {[%clk 0:01:48]} 19. Nh4 {[%clk 0:02:00]}  Be4 {[%clk 0:01:37]} 20. f3 {[%clk 0:01:52]}  Bc2 {[%clk 0:01:37]} 21. Rfc1 {[%clk 0:01:46]}  Bb3 {[%clk 0:01:37]} 22. Ba6 {[%clk 0:01:40]}  Rc7 {[%clk 0:01:24]} 23. Bd6 {[%clk 0:01:36]}  Rd7 {[%clk 0:01:03]} 24. Bb5 {[%clk 0:01:30]}  Rdd8 {[%clk 0:01:03]} 25. Rcb1 {[%clk 0:01:21]}  Bc4 {[%clk 0:01:01]} 26. Bc6 {[%clk 0:01:16]}  Rac8 {[%clk 0:00:29]} 27. Bb7 {[%clk 0:01:15]}  Bd3 {[%clk 0:00:29]} 28. Rc1 {[%clk 0:01:12]}  Rc4 {[%clk 0:00:24]} 29. Ba6 {[%clk 0:01:04]}  Rxd6 {[%clk 0:00:24]} 30. exd6 {[%clk 0:01:03]}  g5 {[%clk 0:00:24]} 31. Bxc4 {[%clk 0:01:02]}  Bxc4 {[%clk 0:00:22]} 32. Rxa7 {[%clk 0:00:59]}  gxh4 {[%clk 0:00:22]} 33. Rb1 {[%clk 0:00:59]}  Nbd7 {[%clk 0:00:06]} 34. Rbb7 {[%clk 0:00:57]}  Kg7 {[%clk 0:00:04]} 35. Rxd7 {[%clk 0:00:56]}  Nxd7 {[%clk 0:00:05]} 36. Rxd7 {[%clk 0:00:56]}  Kf6 {[%clk 0:00:05]} 37. f4 {[%clk 0:00:49]}  Bb5 {[%clk 0:00:03]} 38. Rb7 {[%clk 0:00:49]}  Bc6 {[%clk 0:00:03]} 39. Rc7 {[%clk 0:00:49]}  Ba4 {[%clk 0:00:04]} 40. Kf2 {[%clk 0:00:48]}  h5 {[%clk 0:00:05]} 41. Ke3 {[%clk 0:00:47]}  Bb5 {[%clk 0:00:01]} 42. Kd2 {[%clk 0:00:41]}  Ba4 {[%clk 0:00:00]} 43. Kc1 {[%clk 0:00:41]} 1-0


[Site "https://www.chess.com"]

[Event "Titled Tuesday Blitz August 1 Early 2023"]
[White "Stachanczyk, Jacek"]
[Black "Omorjan, Dejan"]
[WhiteFideId "1116657"]
[BlackFideId "955345"]
[WhiteElo "2435"]
[BlackElo "2584"]
[Result "0-1"]
[Round "5"]
[TimeControl "180+1"]
[Date "2023.08.01"]
[WhiteClock "0:00:06"]
[BlackClock "0:00:11"]
[Board "118"]

1. e4 {[%clk 0:02:55]}  c6 {[%clk 0:02:59]} 2. d4 {[%clk 0:02:54]}  d5 {[%clk 0:03:00]} 3. Nc3 {[%clk 0:02:55]}  dxe4 {[%clk 0:03:00]} 4. Nxe4 {[%clk 0:02:55]}  Nf6 {[%clk 0:03:01]} 5. Nxf6+ {[%clk 0:02:55]}  exf6 {[%clk 0:03:02]} 6. c3 {[%clk 0:02:56]}  Bd6 {[%clk 0:03:03]} 7. Bd3 {[%clk 0:02:56]}  O-O {[%clk 0:03:03]} 8. Ne2 {[%clk 0:02:57]}  Re8 {[%clk 0:03:01]} 9. O-O {[%clk 0:02:57]}  Nd7 {[%clk 0:03:01]} 10. Bf4 {[%clk 0:02:57]}  Nf8 {[%clk 0:02:51]} 11. Bxd6 {[%clk 0:02:55]}  Qxd6 {[%clk 0:02:52]} 12. Ng3 {[%clk 0:02:54]}  Bd7 {[%clk 0:02:45]} 13. Qf3 {[%clk 0:02:52]}  Rad8 {[%clk 0:02:44]} 14. Rfe1 {[%clk 0:02:49]}  Ng6 {[%clk 0:02:37]} 15. Bxg6 {[%clk 0:02:41]}  hxg6 {[%clk 0:02:38]} 16. h4 {[%clk 0:02:30]}  Be6 {[%clk 0:02:26]} 17. b3 {[%clk 0:02:17]}  b5 {[%clk 0:02:16]} 18. h5 {[%clk 0:02:15]}  Qd5 {[%clk 0:02:04]} 19. Qxd5 {[%clk 0:02:05]}  Bxd5 {[%clk 0:02:05]} 20. hxg6 {[%clk 0:02:05]}  fxg6 {[%clk 0:02:05]} 21. f3 {[%clk 0:02:01]}  a5 {[%clk 0:01:55]} 22. Rac1 {[%clk 0:01:35]}  Kf7 {[%clk 0:01:31]} 23. Kf2 {[%clk 0:01:32]}  Rh8 {[%clk 0:01:17]} 24. Ne4 {[%clk 0:01:21]}  b4 {[%clk 0:01:11]} 25. c4 {[%clk 0:01:17]}  Bxe4 {[%clk 0:01:07]} 26. Rxe4 {[%clk 0:01:16]}  f5 {[%clk 0:01:07]} 27. Re5 {[%clk 0:01:07]}  Rxd4 {[%clk 0:01:04]} 28. Rxa5 {[%clk 0:01:06]}  Kf6 {[%clk 0:00:45]} 29. Re1 {[%clk 0:01:02]}  Kg5 {[%clk 0:00:41]} 30. Ra6 {[%clk 0:00:58]}  Rh2 {[%clk 0:00:34]} 31. Kg1 {[%clk 0:00:54]}  Rh8 {[%clk 0:00:29]} 32. Rxc6 {[%clk 0:00:49]}  Rd2 {[%clk 0:00:28]} 33. Rb6 {[%clk 0:00:44]}  Rxa2 {[%clk 0:00:25]} 34. Rxb4 {[%clk 0:00:44]}  Rd8 {[%clk 0:00:25]} 35. Kh2 {[%clk 0:00:38]}  Rh8+ {[%clk 0:00:19]} 36. Kg1 {[%clk 0:00:38]}  Rd8 {[%clk 0:00:17]} 37. Ra4 {[%clk 0:00:27]}  Rb2 {[%clk 0:00:16]} 38. Kh2 {[%clk 0:00:23]}  Rh8+ {[%clk 0:00:12]} 39. Kg1 {[%clk 0:00:22]}  Kf4 {[%clk 0:00:12]} 40. c5+ {[%clk 0:00:06]}  Kg3 {[%clk 0:00:11]} 0-1


[Site "https://www.chess.com"]

[Event "Titled Tuesday Blitz August 1 Early 2023"]
[White "Guz, Ari"]
[Black "Vivas Zamora, Fabian Ernesto"]
[WhiteFideId "2825759"]
[BlackFideId "3902480"]
[WhiteElo "2576"]
[BlackElo "2432"]
[Result "1-0"]
[Round "5"]
[TimeControl "180+1"]
[Date "2023.08.01"]
[WhiteClock "0:00:49"]
[BlackClock "0:00:00"]
[Board "120"]

1. e4 {[%clk 0:03:00]}  c5 {[%clk 0:02:58]} 2. Nf3 {[%clk 0:03:00]}  d6 {[%clk 0:02:58]} 3. Bb5+ {[%clk 0:02:57]}  Bd7 {[%clk 0:02:55]} 4. Bxd7+ {[%clk 0:02:56]}  Nxd7 {[%clk 0:02:55]} 5. c4 {[%clk 0:02:57]}  Ngf6 {[%clk 0:02:51]} 6. Nc3 {[%clk 0:02:57]}  g6 {[%clk 0:02:50]} 7. O-O {[%clk 0:02:53]}  Bg7 {[%clk 0:02:50]} 8. d4 {[%clk 0:02:50]}  cxd4 {[%clk 0:02:49]} 9. Nxd4 {[%clk 0:02:51]}  O-O {[%clk 0:02:47]} 10. b3 {[%clk 0:02:40]}  a6 {[%clk 0:02:33]} 11. Be3 {[%clk 0:02:38]}  Rc8 {[%clk 0:02:30]} 12. Rc1 {[%clk 0:02:26]}  Qa5 {[%clk 0:02:04]} 13. Qe2 {[%clk 0:02:21]}  Ne5 {[%clk 0:00:56]} 14. h3 {[%clk 0:02:09]}  Nfd7 {[%clk 0:00:43]} 15. Nd5 {[%clk 0:02:00]}  Rfe8 {[%clk 0:00:41]} 16. Rfd1 {[%clk 0:01:48]}  Nc6 {[%clk 0:00:38]} 17. Nf3 {[%clk 0:01:42]}  b5 {[%clk 0:00:22]} 18. cxb5 {[%clk 0:01:38]}  Qxb5 {[%clk 0:00:20]} 19. Qe1 {[%clk 0:01:34]}  Nf6 {[%clk 0:00:09]} 20. Nd4 {[%clk 0:01:28]}  Nxd4 {[%clk 0:00:08]} 21. Rxc8 {[%clk 0:01:23]}  Ne2+ {[%clk 0:00:05]} 22. Kh1 {[%clk 0:01:20]}  Nxd5 {[%clk 0:00:05]} 23. Rxe8+ {[%clk 0:01:18]}  Qxe8 {[%clk 0:00:06]} 24. exd5 {[%clk 0:01:17]}  Nc3 {[%clk 0:00:06]} 25. Rd2 {[%clk 0:01:15]}  Qb5 {[%clk 0:00:04]} 26. Bd4 {[%clk 0:01:13]}  Nxd5 {[%clk 0:00:02]} 27. Bxg7 {[%clk 0:01:09]}  Kxg7 {[%clk 0:00:03]} 28. Kh2 {[%clk 0:01:08]}  e6 {[%clk 0:00:03]} 29. Qe4 {[%clk 0:01:07]}  Nf6 {[%clk 0:00:02]} 30. Qd4 {[%clk 0:01:07]}  d5 {[%clk 0:00:03]} 31. g4 {[%clk 0:01:06]}  h6 {[%clk 0:00:02]} 32. h4 {[%clk 0:01:07]}  Qb8+ {[%clk 0:00:03]} 33. f4 {[%clk 0:01:06]}  g5 {[%clk 0:00:01]} 34. hxg5 {[%clk 0:01:07]}  hxg5 {[%clk 0:00:02]} 35. Re2 {[%clk 0:01:00]}  gxf4 {[%clk 0:00:02]} 36. Kg2 {[%clk 0:00:55]}  e5 {[%clk 0:00:02]} 37. Qxe5 {[%clk 0:00:55]}  Qxe5 {[%clk 0:00:02]} 38. Rxe5 {[%clk 0:00:55]}  Kg6 {[%clk 0:00:03]} 39. Kf3 {[%clk 0:00:54]}  a5 {[%clk 0:00:01]} 40. Kxf4 {[%clk 0:00:51]}  d4 {[%clk 0:00:01]} 41. Rxa5 {[%clk 0:00:50]}  Nd7 {[%clk 0:00:00]} 42. Rd5 {[%clk 0:00:49]} 1-0


[Site "https://www.chess.com"]

[Event "Titled Tuesday Blitz August 1 Early 2023"]
[White "Saya, Ethan"]
[Black "Rangel, Daniel"]
[WhiteFideId "26095181"]
[BlackFideId "2124475"]
[WhiteElo "2575"]
[BlackElo "2429"]
[Result "1-0"]
[Round "5"]
[TimeControl "180+1"]
[Date "2023.08.01"]
[WhiteClock "0:00:26"]
[BlackClock "0:00:00"]
[Board "122"]

1. d4 {[%clk 0:03:00]}  Nf6 {[%clk 0:01:58]} 2. c4 {[%clk 0:02:58]}  e6 {[%clk 0:01:58]} 3. Nc3 {[%clk 0:02:58]}  d5 {[%clk 0:01:59]} 4. cxd5 {[%clk 0:02:56]}  exd5 {[%clk 0:02:00]} 5. Bg5 {[%clk 0:02:56]}  c6 {[%clk 0:02:01]} 6. e3 {[%clk 0:02:56]}  Be7 {[%clk 0:02:01]} 7. Bd3 {[%clk 0:02:55]}  Nbd7 {[%clk 0:01:58]} 8. Qc2 {[%clk 0:02:53]}  Nh5 {[%clk 0:01:57]} 9. Bxe7 {[%clk 0:02:48]}  Qxe7 {[%clk 0:01:58]} 10. Rc1 {[%clk 0:02:33]}  g6 {[%clk 0:01:55]} 11. Nxd5 {[%clk 0:02:22]}  Qd6 {[%clk 0:01:15]} 12. Nc3 {[%clk 0:02:18]}  O-O {[%clk 0:01:15]} 13. Nf3 {[%clk 0:02:16]}  Ndf6 {[%clk 0:01:15]} 14. O-O {[%clk 0:02:10]}  Bg4 {[%clk 0:00:56]} 15. Ne5 {[%clk 0:02:09]}  Rae8 {[%clk 0:00:52]} 16. Ne4 {[%clk 0:01:54]}  Nxe4 {[%clk 0:00:30]} 17. Nxg4 {[%clk 0:01:51]}  Ng5 {[%clk 0:00:23]} 18. Ne5 {[%clk 0:01:42]}  f6 {[%clk 0:00:18]} 19. Nc4 {[%clk 0:01:22]}  Qd7 {[%clk 0:00:18]} 20. Be2 {[%clk 0:01:16]}  Ng7 {[%clk 0:00:15]} 21. Nd2 {[%clk 0:01:11]}  h5 {[%clk 0:00:14]} 22. h4 {[%clk 0:01:05]}  Nh7 {[%clk 0:00:06]} 23. Qxg6 {[%clk 0:01:04]}  f5 {[%clk 0:00:06]} 24. Bc4+ {[%clk 0:00:56]}  Kh8 {[%clk 0:00:05]} 25. Nf3 {[%clk 0:00:54]}  Rf6 {[%clk 0:00:06]} 26. Qg3 {[%clk 0:00:54]}  Qd6 {[%clk 0:00:04]} 27. Ne5 {[%clk 0:00:47]}  Ne6 {[%clk 0:00:02]} 28. Ng6+ {[%clk 0:00:42]}  Kg7 {[%clk 0:00:02]} 29. Qxd6 {[%clk 0:00:43]}  Rxg6 {[%clk 0:00:01]} 30. Qd7+ {[%clk 0:00:39]}  Kf8 {[%clk 0:00:02]} 31. Qxh7 {[%clk 0:00:38]}  Rg7 {[%clk 0:00:02]} 32. Qh8+ {[%clk 0:00:37]}  Ke7 {[%clk 0:00:02]} 33. Qxh5 {[%clk 0:00:35]}  Reg8 {[%clk 0:00:01]} 34. g3 {[%clk 0:00:33]}  f4 {[%clk 0:00:02]} 35. Bxe6 {[%clk 0:00:31]}  Kxe6 {[%clk 0:00:03]} 36. exf4 {[%clk 0:00:29]}  Kd7 {[%clk 0:00:04]} 37. Qf5+ {[%clk 0:00:28]}  Kc7 {[%clk 0:00:03]} 38. Rfe1 {[%clk 0:00:28]}  Rd7 {[%clk 0:00:02]} 39. h5 {[%clk 0:00:27]}  Rd5 {[%clk 0:00:00]} 40. Re5 {[%clk 0:00:26]} 1-0


[Site "https://www.chess.com"]

[Event "Titled Tuesday Blitz August 1 Early 2023"]
[White "Kashlinskaya, Alina"]
[Black "Sliwicki, Damian"]
[WhiteFideId "4198026"]
[BlackFideId "1127128"]
[WhiteElo "2574"]
[BlackElo "2426"]
[Result "1-0"]
[Round "5"]
[TimeControl "180+1"]
[Date "2023.08.01"]
[WhiteClock "0:00:52"]
[BlackClock "0:00:06"]
[Board "123"]

1. c4 {[%clk 0:02:56]}  Nf6 {[%clk 0:02:58]} 2. Nc3 {[%clk 0:02:56]}  e6 {[%clk 0:02:56]} 3. e4 {[%clk 0:02:56]}  d5 {[%clk 0:02:54]} 4. e5 {[%clk 0:02:56]}  Nfd7 {[%clk 0:02:52]} 5. d4 {[%clk 0:02:55]}  dxc4 {[%clk 0:02:51]} 6. Bxc4 {[%clk 0:02:55]}  c5 {[%clk 0:02:51]} 7. Nf3 {[%clk 0:02:53]}  Nc6 {[%clk 0:02:47]} 8. Bf4 {[%clk 0:02:07]}  cxd4 {[%clk 0:02:43]} 9. Nb5 {[%clk 0:02:07]}  Bb4+ {[%clk 0:02:42]} 10. Kf1 {[%clk 0:02:08]}  O-O {[%clk 0:02:39]} 11. Nbxd4 {[%clk 0:02:06]}  Qb6 {[%clk 0:01:51]} 12. Nxc6 {[%clk 0:01:58]}  bxc6 {[%clk 0:01:51]} 13. h4 {[%clk 0:01:55]}  Bc5 {[%clk 0:01:48]} 14. Qe2 {[%clk 0:01:53]}  a5 {[%clk 0:01:39]} 15. Rd1 {[%clk 0:01:50]}  Kh8 {[%clk 0:01:24]} 16. Ng5 {[%clk 0:01:43]}  h6 {[%clk 0:00:41]} 17. Qe4 {[%clk 0:01:41]}  f5 {[%clk 0:00:38]} 18. Qe2 {[%clk 0:01:30]}  Nb8 {[%clk 0:00:18]} 19. Nxe6 {[%clk 0:01:25]}  Bxe6 {[%clk 0:00:18]} 20. Bxe6 {[%clk 0:01:26]}  Na6 {[%clk 0:00:17]} 21. Rh3 {[%clk 0:01:21]}  Rab8 {[%clk 0:00:17]} 22. b3 {[%clk 0:01:20]}  Nb4 {[%clk 0:00:16]} 23. Rd7 {[%clk 0:01:09]}  Nd5 {[%clk 0:00:16]} 24. Bxd5 {[%clk 0:01:06]}  cxd5 {[%clk 0:00:17]} 25. Rg3 {[%clk 0:01:07]}  Rg8 {[%clk 0:00:16]} 26. e6 {[%clk 0:01:05]}  a4 {[%clk 0:00:15]} 27. Bxh6 {[%clk 0:00:54]}  Bd4 {[%clk 0:00:12]} 28. Qh5 {[%clk 0:00:52]}  g6 {[%clk 0:00:06]} 29. Bg7# {[%clk 0:00:52]} 1-0


[Site "https://www.chess.com"]

[Event "Titled Tuesday Blitz August 1 Early 2023"]
[White "Bilan, Danila"]
[Black "Davidson, Kevin"]
[WhiteFideId "24161918"]
[BlackFideId "2056810"]
[WhiteElo "2573"]
[BlackElo "2427"]
[Result "1-0"]
[Round "5"]
[TimeControl "180+1"]
[Date "2023.08.01"]
[WhiteClock "0:00:03"]
[BlackClock "0:00:00"]
[Board "124"]

1. d4 {[%clk 0:02:56]}  Nf6 {[%clk 0:02:59]} 2. Nf3 {[%clk 0:02:56]}  g6 {[%clk 0:02:59]} 3. Bg5 {[%clk 0:02:56]}  Bg7 {[%clk 0:02:59]} 4. c3 {[%clk 0:02:56]}  d6 {[%clk 0:02:56]} 5. Nbd2 {[%clk 0:02:56]}  h6 {[%clk 0:02:56]} 6. Bh4 {[%clk 0:02:56]}  O-O {[%clk 0:02:56]} 7. e4 {[%clk 0:02:54]}  Nc6 {[%clk 0:02:53]} 8. Bc4 {[%clk 0:02:49]}  e5 {[%clk 0:02:53]} 9. dxe5 {[%clk 0:02:38]}  dxe5 {[%clk 0:02:54]} 10. O-O {[%clk 0:02:38]}  Qe8 {[%clk 0:02:43]} 11. Qc2 {[%clk 0:02:25]}  Nh5 {[%clk 0:02:40]} 12. Rfe1 {[%clk 0:02:22]}  Nd8 {[%clk 0:01:57]} 13. Nf1 {[%clk 0:02:09]}  Ne6 {[%clk 0:01:55]} 14. Ne3 {[%clk 0:02:03]}  c6 {[%clk 0:01:54]} 15. a4 {[%clk 0:01:52]}  Nef4 {[%clk 0:01:45]} 16. Rad1 {[%clk 0:01:37]}  Be6 {[%clk 0:01:40]} 17. Qb3 {[%clk 0:01:26]}  Bxc4 {[%clk 0:01:24]} 18. Nxc4 {[%clk 0:01:21]}  Qe6 {[%clk 0:01:24]} 19. Rd6 {[%clk 0:01:20]}  Qg4 {[%clk 0:01:23]} 20. Bg3 {[%clk 0:01:15]}  Nh3+ {[%clk 0:00:39]} 21. Kf1 {[%clk 0:01:01]}  N5f4 {[%clk 0:00:36]} 22. Ncxe5 {[%clk 0:00:33]}  Bxe5 {[%clk 0:00:25]} 23. Nxe5 {[%clk 0:00:31]}  Qh5 {[%clk 0:00:22]} 24. Nf3 {[%clk 0:00:15]}  Qg4 {[%clk 0:00:10]} 25. Red1 {[%clk 0:00:05]}  Nxg2 {[%clk 0:00:10]} 26. Kxg2 {[%clk 0:00:05]}  Nf4+ {[%clk 0:00:10]} 27. Kf1 {[%clk 0:00:04]}  Qxf3 {[%clk 0:00:09]} 28. Bxf4 {[%clk 0:00:04]}  Qxf4 {[%clk 0:00:08]} 29. Qc2 {[%clk 0:00:05]}  Qxh2 {[%clk 0:00:05]} 30. e5 {[%clk 0:00:04]}  Qxe5 {[%clk 0:00:03]} 31. Rd7 {[%clk 0:00:05]}  Rae8 {[%clk 0:00:02]} 32. Qb3 {[%clk 0:00:05]}  Qg5 {[%clk 0:00:01]} 33. Rxb7 {[%clk 0:00:04]}  Qe5 {[%clk 0:00:01]} 34. Qc4 {[%clk 0:00:04]}  Qg5 {[%clk 0:00:01]} 35. Rxa7 {[%clk 0:00:04]}  Re6 {[%clk 0:00:01]} 36. Rdd7 {[%clk 0:00:04]}  Rfe8 {[%clk 0:00:00]} 37. Rd1 {[%clk 0:00:03]} 1-0


[Site "https://www.chess.com"]

[Event "Titled Tuesday Blitz August 1 Early 2023"]
[White "Ambartsumova, Karina"]
[Black "Fernandez Garcia, Gumersindo"]
[WhiteFideId "4166299"]
[BlackFideId "24516740"]
[WhiteElo "2570"]
[BlackElo "2425"]
[Result "1-0"]
[Round "5"]
[TimeControl "180+1"]
[Date "2023.08.01"]
[WhiteClock "0:00:37"]
[BlackClock "0:00:44"]
[Board "125"]

1. c4 {[%clk 0:03:00]}  Nf6 {[%clk 0:02:52]} 2. Nc3 {[%clk 0:03:00]}  e6 {[%clk 0:02:50]} 3. e4 {[%clk 0:02:59]}  d5 {[%clk 0:02:49]} 4. e5 {[%clk 0:02:59]}  Nfd7 {[%clk 0:02:43]} 5. d4 {[%clk 0:02:57]}  dxc4 {[%clk 0:02:38]} 6. Bxc4 {[%clk 0:02:54]}  a6 {[%clk 0:02:37]} 7. a4 {[%clk 0:02:48]}  c5 {[%clk 0:02:37]} 8. Nf3 {[%clk 0:02:45]}  Nc6 {[%clk 0:02:35]} 9. d5 {[%clk 0:01:28]}  Ncxe5 {[%clk 0:02:30]} 10. dxe6 {[%clk 0:01:12]}  fxe6 {[%clk 0:02:27]} 11. Bxe6 {[%clk 0:01:06]}  Nxf3+ {[%clk 0:02:02]} 12. Qxf3 {[%clk 0:01:06]}  Ne5 {[%clk 0:01:48]} 13. Qh5+ {[%clk 0:01:04]}  g6 {[%clk 0:01:35]} 14. Qxe5 {[%clk 0:01:01]}  Qe7 {[%clk 0:01:35]} 15. Nd5 {[%clk 0:00:53]}  Bg7 {[%clk 0:01:18]} 16. Nxe7 {[%clk 0:00:52]}  Bxe5 {[%clk 0:01:18]} 17. Nxc8 {[%clk 0:00:52]}  Kd8 {[%clk 0:01:01]} 18. Bg5+ {[%clk 0:00:52]}  Kc7 {[%clk 0:01:01]} 19. O-O-O {[%clk 0:00:51]}  Re8 {[%clk 0:00:57]} 20. Ne7 {[%clk 0:00:44]}  b5 {[%clk 0:00:54]} 21. a5 {[%clk 0:00:41]}  h6 {[%clk 0:00:47]} 22. Rd7+ {[%clk 0:00:38]}  Kb8 {[%clk 0:00:45]} 23. Nc6+ {[%clk 0:00:38]}  Kc8 {[%clk 0:00:44]} 24. Re7# {[%clk 0:00:37]} 1-0


[Site "https://www.chess.com"]

[Event "Titled Tuesday Blitz August 1 Early 2023"]
[White "Harriott, Tyrell"]
[Black "To, Nhat Minh"]
[WhiteFideId "2086484"]
[BlackFideId "729019"]
[WhiteElo "2424"]
[BlackElo "2552"]
[Result "0-1"]
[Round "5"]
[TimeControl "180+1"]
[Date "2023.08.01"]
[WhiteClock "0:00:00"]
[BlackClock "0:00:02"]
[Board "126"]

1. d4 {[%clk 0:03:00]}  Nf6 {[%clk 0:02:54]} 2. e3 {[%clk 0:02:56]}  d5 {[%clk 0:02:53]} 3. Bd3 {[%clk 0:02:55]}  c5 {[%clk 0:02:50]} 4. c3 {[%clk 0:02:51]}  Nc6 {[%clk 0:02:50]} 5. f4 {[%clk 0:02:50]}  Bg4 {[%clk 0:02:49]} 6. Ne2 {[%clk 0:02:50]}  e6 {[%clk 0:02:49]} 7. Bd2 {[%clk 0:02:50]}  Bd6 {[%clk 0:02:37]} 8. O-O {[%clk 0:02:48]}  O-O {[%clk 0:02:36]} 9. Bc1 {[%clk 0:02:47]}  Bf5 {[%clk 0:02:29]} 10. Ng3 {[%clk 0:02:45]}  Bxd3 {[%clk 0:02:27]} 11. Qxd3 {[%clk 0:02:46]}  Qb6 {[%clk 0:02:09]} 12. Kh1 {[%clk 0:02:21]}  Rfe8 {[%clk 0:02:08]} 13. Nd2 {[%clk 0:02:21]}  Ne7 {[%clk 0:02:05]} 14. Nf3 {[%clk 0:02:20]}  Ng6 {[%clk 0:01:59]} 15. Ne5 {[%clk 0:02:20]}  Rac8 {[%clk 0:01:24]} 16. b3 {[%clk 0:02:12]}  Rc7 {[%clk 0:01:18]} 17. Bb2 {[%clk 0:02:11]}  Rec8 {[%clk 0:01:17]} 18. c4 {[%clk 0:01:52]}  cxd4 {[%clk 0:01:09]} 19. Bxd4 {[%clk 0:01:51]}  Qa6 {[%clk 0:00:55]} 20. Rfc1 {[%clk 0:01:09]}  Bxe5 {[%clk 0:00:52]} 21. fxe5 {[%clk 0:01:08]}  Ng4 {[%clk 0:00:50]} 22. Qe2 {[%clk 0:00:48]}  N4xe5 {[%clk 0:00:49]} 23. Qh5 {[%clk 0:00:42]}  Nd3 {[%clk 0:00:43]} 24. Rf1 {[%clk 0:00:37]}  dxc4 {[%clk 0:00:35]} 25. Ne4 {[%clk 0:00:19]}  e5 {[%clk 0:00:26]} 26. Ng5 {[%clk 0:00:18]}  h6 {[%clk 0:00:24]} 27. Nxf7 {[%clk 0:00:14]}  exd4 {[%clk 0:00:15]} 28. Nxh6+ {[%clk 0:00:06]}  gxh6 {[%clk 0:00:16]} 29. Qxh6 {[%clk 0:00:06]}  Rh7 {[%clk 0:00:15]} 30. Qg5 {[%clk 0:00:04]}  Qd6 {[%clk 0:00:12]} 31. h3 {[%clk 0:00:03]}  Rg7 {[%clk 0:00:07]} 32. Rf6 {[%clk 0:00:02]}  Qe7 {[%clk 0:00:03]} 33. Raf1 {[%clk 0:00:01]}  Re8 {[%clk 0:00:01]} 34. Qf5 {[%clk 0:00:00]}  dxe3 {[%clk 0:00:02]} 0-1


[Site "https://www.chess.com"]